[Event "Late-Titled-Tuesday-Blitz-March-05-2024"]
[Site "Chess.com"]
[Date "2024.03.05"]
[Round "6"]
[White "K_A_S_T_O_R"]
[Black "Sanan_Sjugirov"]
[Result "1-0"]
[WhiteElo "2837"]
[BlackElo "2988"]
[TimeControl "180+1"]
[EndTime "15:05:20 PST"]
[Termination "K_A_S_T_O_R won on time"]

1. e4 {[%clk 0:03:00.9]} 1... c6 {[%clk 0:02:57.3]} 2. d4 {[%clk 0:03:00.2]}
2... d5 {[%clk 0:02:57.5]} 3. exd5 {[%clk 0:03:00.3]} 3... cxd5 {[%clk
0:02:58.4]} 4. c4 {[%clk 0:03:00.9]} 4... Nf6 {[%clk 0:02:58.1]} 5. Nc3 {[%clk
0:03:01.4]} 5... Nc6 {[%clk 0:02:53.9]} 6. Bg5 {[%clk 0:03:00.6]} 6... Ne4
{[%clk 0:02:51.6]} 7. cxd5 {[%clk 0:02:59.2]} 7... Nxc3 {[%clk 0:02:48.4]} 8.
bxc3 {[%clk 0:02:59.7]} 8... Qxd5 {[%clk 0:02:48.7]} 9. Be3 {[%clk 0:02:59.7]}
9... e5 {[%clk 0:02:36.5]} 10. Nf3 {[%clk 0:02:59.4]} 10... Bg4 {[%clk
0:02:28.2]} 11. Be2 {[%clk 0:02:29.4]} 11... exd4 {[%clk 0:02:26.1]} 12. cxd4
{[%clk 0:02:20.7]} 12... Bb4+ {[%clk 0:02:23.3]} 13. Kf1 {[%clk 0:02:21.2]}
13... O-O {[%clk 0:02:21.4]} 14. Qb3 {[%clk 0:02:19.7]} 14... Be6 {[%clk
0:02:11]} 15. Qc2 {[%clk 0:02:08.8]} 15... Bf5 {[%clk 0:02:04.5]} 16. Qb3 {[%clk
0:02:08]} 16... Qxb3 {[%clk 0:01:51.7]} 17. axb3 {[%clk 0:02:07.7]} 17... Rfd8
{[%clk 0:01:52.5]} 18. Bc4 {[%clk 0:02:00.3]} 18... Na5 {[%clk 0:01:42.1]} 19.
Ke2 {[%clk 0:01:54.8]} 19... a6 {[%clk 0:01:26.9]} 20. Ne5 {[%clk 0:01:44.5]}
20... Nxc4 {[%clk 0:01:22.9]} 21. bxc4 {[%clk 0:01:36.9]} 21... Bc3 {[%clk
0:01:17.6]} 22. Rad1 {[%clk 0:01:32]} 22... Rac8 {[%clk 0:01:16.1]} 23. c5
{[%clk 0:01:18.1]} 23... Be6 {[%clk 0:01:10.7]} 24. Rd3 {[%clk 0:01:01.9]} 24...
Ba5 {[%clk 0:01:02.9]} 25. Ra3 {[%clk 0:00:57.8]} 25... Bb4 {[%clk 0:00:56.9]}
26. Ra4 {[%clk 0:00:53.9]} 26... a5 {[%clk 0:00:57]} 27. Rc1 {[%clk 0:00:53.2]}
27... Bb3 {[%clk 0:00:30.9]} 28. Raa1 {[%clk 0:00:48.7]} 28... a4 {[%clk
0:00:31.1]} 29. Nc4 {[%clk 0:00:35.5]} 29... b5 {[%clk 0:00:24.7]} 30. Nb6
{[%clk 0:00:28.9]} 30... Rc6 {[%clk 0:00:22.8]} 31. Rab1 {[%clk 0:00:24.5]}
31... Ba3 {[%clk 0:00:13.1]} 32. d5 {[%clk 0:00:20.5]} 32... Rxb6 {[%clk
0:00:04.5]} 33. cxb6 {[%clk 0:00:20.1]} 33... Bxc1 {[%clk 0:00:04.9]} 34. Rxc1
{[%clk 0:00:18.8]} 34... Bxd5 {[%clk 0:00:05.2]} 35. Rc5 {[%clk 0:00:16.3]}
35... Bb7 {[%clk 0:00:04.8]} 36. Rc7 {[%clk 0:00:15.9]} 36... Bxg2 {[%clk
0:00:03.2]} 37. f3 {[%clk 0:00:15.5]} 1-0

[Event "Late-Titled-Tuesday-Blitz-March-05-2024"]
[Site "Chess.com"]
[Date "2024.03.05"]
[Round "6"]
[White "Cambek64"]
[Black "rickywsb"]
[Result "1/2-1/2"]
[WhiteElo "2476"]
[BlackElo "2367"]
[TimeControl "180+1"]
[EndTime "15:05:20 PST"]
[Termination "Game drawn by repetition"]

1. e4 {[%clk 0:02:20.6]} 1... c5 {[%clk 0:02:59.3]} 2. Nc3 {[%clk 0:02:19.8]}
2... Nc6 {[%clk 0:02:55.1]} 3. d3 {[%clk 0:02:19.9]} 3... g6 {[%clk 0:02:53.8]}
4. Be3 {[%clk 0:02:19.5]} 4... d6 {[%clk 0:02:53.2]} 5. d4 {[%clk 0:02:19.8]}
5... Bg7 {[%clk 0:02:46]} 6. dxc5 {[%clk 0:02:19.4]} 6... Qa5 {[%clk 0:02:45.6]}
7. cxd6 {[%clk 0:02:19.2]} 7... exd6 {[%clk 0:02:38]} 8. Bd2 {[%clk 0:02:17.1]}
8... Nge7 {[%clk 0:02:33.7]} 9. Nf3 {[%clk 0:02:15.3]} 9... Bg4 {[%clk
0:02:32.8]} 10. Be2 {[%clk 0:02:15.1]} 10... Qb6 {[%clk 0:02:21.9]} 11. O-O
{[%clk 0:02:13.5]} 11... O-O {[%clk 0:02:18.3]} 12. h3 {[%clk 0:02:09]} 12...
Be6 {[%clk 0:02:08.7]} 13. Rb1 {[%clk 0:02:06]} 13... Rad8 {[%clk 0:02:03.4]}
14. Be3 {[%clk 0:02:05.4]} 14... Qc7 {[%clk 0:02:01.6]} 15. Nd4 {[%clk
0:02:05.4]} 15... a6 {[%clk 0:01:56.4]} 16. f4 {[%clk 0:02:00.3]} 16... Nxd4
{[%clk 0:01:48.5]} 17. Bxd4 {[%clk 0:01:59.2]} 17... Bxd4+ {[%clk 0:01:46.4]}
18. Qxd4 {[%clk 0:01:59.6]} 18... Qc5 {[%clk 0:01:47]} 19. Rbd1 {[%clk
0:01:57.2]} 19... Nc6 {[%clk 0:01:47]} 20. Qxc5 {[%clk 0:01:56.4]} 20... dxc5
{[%clk 0:01:47.9]} 21. e5 {[%clk 0:01:42.4]} 21... Nd4 {[%clk 0:01:47.1]} 22.
Bd3 {[%clk 0:01:41.6]} 22... b5 {[%clk 0:01:44.2]} 23. Kf2 {[%clk 0:01:37.7]}
23... f5 {[%clk 0:01:13.3]} 24. Ne2 {[%clk 0:01:33.6]} 24... Bxa2 {[%clk
0:01:00.7]} 25. b3 {[%clk 0:01:24.1]} 25... Nxe2 {[%clk 0:00:33.3]} 26. Bxe2
{[%clk 0:01:20.9]} 26... c4 {[%clk 0:00:33.5]} 27. Rxd8 {[%clk 0:01:06.1]} 27...
Rxd8 {[%clk 0:00:32.8]} 28. Ra1 {[%clk 0:01:01.2]} 28... cxb3 {[%clk 0:00:31.9]}
29. cxb3 {[%clk 0:01:00.3]} 29... Bxb3 {[%clk 0:00:32.1]} 30. Rxa6 {[%clk
0:00:59.1]} 30... Bc4 {[%clk 0:00:26.9]} 31. Rd6 {[%clk 0:00:53.6]} 31... Rxd6
{[%clk 0:00:19]} 32. exd6 {[%clk 0:00:46.1]} 32... Kf7 {[%clk 0:00:12.4]} 33.
Bxc4+ {[%clk 0:00:45.6]} 33... bxc4 {[%clk 0:00:12.7]} 34. Ke3 {[%clk
0:00:46.2]} 34... Ke6 {[%clk 0:00:08.9]} 35. Kd4 {[%clk 0:00:46.7]} 35... Kxd6
{[%clk 0:00:06.3]} 36. Kxc4 {[%clk 0:00:47.3]} 36... Kc6 {[%clk 0:00:04.8]} 37.
Kd4 {[%clk 0:00:46.7]} 37... Kd6 {[%clk 0:00:05.3]} 38. g3 {[%clk 0:00:44.8]}
38... h6 {[%clk 0:00:05.3]} 39. Kc4 {[%clk 0:00:39]} 39... Kc6 {[%clk
0:00:05.3]} 40. h4 {[%clk 0:00:27.9]} 40... h5 {[%clk 0:00:04.3]} 41. Kd4 {[%clk
0:00:28.4]} 41... Kd6 {[%clk 0:00:04.7]} 42. Kc4 {[%clk 0:00:28.3]} 42... Kc6
{[%clk 0:00:05.3]} 43. Kd4 {[%clk 0:00:28.9]} 43... Kd6 {[%clk 0:00:05.9]} 44.
Kc4 {[%clk 0:00:29.4]} 44... Kc6 {[%clk 0:00:06.5]} 1/2-1/2

[Event "Late-Titled-Tuesday-Blitz-March-05-2024"]
[Site "Chess.com"]
[Date "2024.03.05"]
[Round "6"]
[White "grzechu96"]
[Black "Perecke"]
[Result "1-0"]
[WhiteElo "2736"]
[BlackElo "2542"]
[TimeControl "180+1"]
[EndTime "15:05:22 PST"]
[Termination "grzechu96 won on time"]

1. e4 {[%clk 0:03:00.9]} 1... c5 {[%clk 0:02:59.5]} 2. Nf3 {[%clk 0:03:01]} 2...
e6 {[%clk 0:02:59.7]} 3. g3 {[%clk 0:03:01.3]} 3... Nc6 {[%clk 0:02:59.5]} 4.
Bg2 {[%clk 0:03:01.4]} 4... g6 {[%clk 0:02:56.9]} 5. O-O {[%clk 0:03:00.5]} 5...
Bg7 {[%clk 0:02:56.8]} 6. c3 {[%clk 0:03:00.3]} 6... Nge7 {[%clk 0:02:55.8]} 7.
d4 {[%clk 0:03:00.3]} 7... cxd4 {[%clk 0:02:52.7]} 8. cxd4 {[%clk 0:03:01.2]}
8... d5 {[%clk 0:02:50.5]} 9. e5 {[%clk 0:03:01.5]} 9... O-O {[%clk 0:02:50.7]}
10. Nc3 {[%clk 0:03:01.3]} 10... b6 {[%clk 0:02:50.3]} 11. Bf4 {[%clk
0:02:58.5]} 11... a5 {[%clk 0:02:49.3]} 12. Qd2 {[%clk 0:02:56.5]} 12... Ba6
{[%clk 0:02:49]} 13. Rfd1 {[%clk 0:02:53.9]} 13... Rc8 {[%clk 0:02:49.3]} 14. h4
{[%clk 0:02:53.1]} 14... f6 {[%clk 0:02:29.8]} 15. exf6 {[%clk 0:02:52.4]} 15...
Bxf6 {[%clk 0:02:30.7]} 16. Re1 {[%clk 0:02:48.8]} 16... Qd7 {[%clk 0:02:23.9]}
17. Qe3 {[%clk 0:01:49]} 17... Nd8 {[%clk 0:01:33.9]} 18. Ne5 {[%clk 0:01:43.5]}
18... Qe8 {[%clk 0:01:20.9]} 19. Bh3 {[%clk 0:01:36.8]} 19... Nf5 {[%clk
0:00:54.7]} 20. Bxf5 {[%clk 0:01:36.8]} 20... exf5 {[%clk 0:00:55.6]} 21. Nxd5
{[%clk 0:01:36.6]} 21... Bxe5 {[%clk 0:00:42.9]} 22. Qxe5 {[%clk 0:01:34.7]}
22... Qxe5 {[%clk 0:00:43.1]} 23. Bxe5 {[%clk 0:01:33.4]} 23... Nc6 {[%clk
0:00:37.4]} 24. Nxb6 {[%clk 0:01:31.1]} 24... Rcd8 {[%clk 0:00:34.8]} 25. d5
{[%clk 0:01:24.7]} 25... Nxe5 {[%clk 0:00:20.2]} 26. Rxe5 {[%clk 0:01:25.6]}
26... f4 {[%clk 0:00:13.8]} 27. Rd1 {[%clk 0:01:09.2]} 27... fxg3 {[%clk
0:00:10.4]} 28. fxg3 {[%clk 0:01:09.8]} 28... Rf3 {[%clk 0:00:10.1]} 29. Kg2
{[%clk 0:00:33.9]} 29... Rdf8 {[%clk 0:00:08.8]} 30. Rd2 {[%clk 0:00:34.4]}
30... Bf1+ {[%clk 0:00:07.2]} 31. Kh2 {[%clk 0:00:34.9]} 31... Rb8 {[%clk
0:00:05.4]} 32. d6 {[%clk 0:00:32.6]} 32... Bb5 {[%clk 0:00:03.5]} 33. d7 {[%clk
0:00:32.2]} 33... Bxd7 {[%clk 0:00:03]} 34. Nxd7 {[%clk 0:00:33]} 34... Rb4
{[%clk 0:00:03]} 35. Re7 {[%clk 0:00:24.3]} 35... h5 {[%clk 0:00:02.2]} 36. b3
{[%clk 0:00:22.3]} 36... g5 {[%clk 0:00:02.3]} 37. Rd6 {[%clk 0:00:20.3]} 37...
gxh4 {[%clk 0:00:01.7]} 38. Ne5 {[%clk 0:00:15.1]} 38... hxg3+ {[%clk
0:00:01.5]} 39. Kg2 {[%clk 0:00:15.7]} 1-0

[Event "Late-Titled-Tuesday-Blitz-March-05-2024"]
[Site "Chess.com"]
[Date "2024.03.05"]
[Round "6"]
[White "ccccvhhhj"]
[Black "kalxandria"]
[Result "1-0"]
[WhiteElo "2464"]
[BlackElo "2196"]
[TimeControl "180+1"]
[EndTime "15:05:22 PST"]
[Termination "ccccvhhhj won on time"]

1. e4 {[%clk 0:03:00.9]} 1... e6 {[%clk 0:02:58.9]} 2. Nf3 {[%clk 0:03:01.3]}
2... d5 {[%clk 0:02:57.7]} 3. e5 {[%clk 0:03:02]} 3... c5 {[%clk 0:02:55.9]} 4.
b4 {[%clk 0:03:02.6]} 4... b6 {[%clk 0:02:54.2]} 5. bxc5 {[%clk 0:03:02.5]} 5...
bxc5 {[%clk 0:02:53.3]} 6. c3 {[%clk 0:03:03.4]} 6... Nc6 {[%clk 0:02:49.7]} 7.
d4 {[%clk 0:03:03.6]} 7... Qc7 {[%clk 0:02:47.7]} 8. Bd3 {[%clk 0:03:03.1]} 8...
cxd4 {[%clk 0:02:36.5]} 9. cxd4 {[%clk 0:03:04]} 9... Bb4+ {[%clk 0:02:33.9]}
10. Bd2 {[%clk 0:03:02.5]} 10... Bxd2+ {[%clk 0:02:32.3]} 11. Nbxd2 {[%clk
0:03:03.4]} 11... Nge7 {[%clk 0:02:24.9]} 12. O-O {[%clk 0:03:03.8]} 12... h6
{[%clk 0:02:15.7]} 13. Rc1 {[%clk 0:03:03.4]} 13... O-O {[%clk 0:02:13.2]} 14.
Nb3 {[%clk 0:02:59.1]} 14... a5 {[%clk 0:02:04.1]} 15. Bb1 {[%clk 0:02:57]}
15... a4 {[%clk 0:01:59]} 16. Nc5 {[%clk 0:02:53.9]} 16... Qa5 {[%clk
0:01:40.8]} 17. Qc2 {[%clk 0:02:52.3]} 17... Ng6 {[%clk 0:01:26.5]} 18. h4
{[%clk 0:02:49.7]} 18... Nb4 {[%clk 0:01:25.6]} 19. Qd2 {[%clk 0:02:44.4]} 19...
Ba6 {[%clk 0:01:12.3]} 20. Rfd1 {[%clk 0:02:39.7]} 20... Bc4 {[%clk 0:01:09.7]}
21. a3 {[%clk 0:02:15.1]} 21... Nc6 {[%clk 0:01:08.4]} 22. Qc2 {[%clk
0:02:10.4]} 22... Rfb8 {[%clk 0:00:48.6]} 23. Nxe6 {[%clk 0:02:08.7]} 23... Nce7
{[%clk 0:00:26.5]} 24. h5 {[%clk 0:02:07.2]} 24... fxe6 {[%clk 0:00:25.2]} 25.
hxg6 {[%clk 0:02:06.9]} 25... Bb3 {[%clk 0:00:25.6]} 26. Qe2 {[%clk 0:01:59.1]}
26... Bxd1 {[%clk 0:00:26.5]} 27. Rxd1 {[%clk 0:01:59.6]} 27... Rb7 {[%clk
0:00:17.8]} 28. Rc1 {[%clk 0:01:54.2]} 28... Rab8 {[%clk 0:00:17.4]} 29. Bd3
{[%clk 0:01:53.6]} 29... Rb2 {[%clk 0:00:16.4]} 30. Qe3 {[%clk 0:01:53.6]} 30...
Qb6 {[%clk 0:00:15]} 31. Kh2 {[%clk 0:01:52.2]} 31... Qb3 {[%clk 0:00:14.1]} 32.
Rc7 {[%clk 0:01:51]} 32... Nf5 {[%clk 0:00:13.9]} 33. Bxf5 {[%clk 0:01:50]}
33... exf5 {[%clk 0:00:12.4]} 34. Qf4 {[%clk 0:01:46.6]} 34... Qb6 {[%clk
0:00:11]} 35. e6 {[%clk 0:01:26.2]} 35... Qxe6 {[%clk 0:00:10.6]} 36. Ne5 {[%clk
0:01:26.7]} 36... Re8 {[%clk 0:00:07.7]} 37. Qc1 {[%clk 0:01:08.8]} 37... Re2
{[%clk 0:00:07.2]} 38. Qc5 {[%clk 0:01:02.6]} 38... Rxe5 {[%clk 0:00:06.9]} 39.
dxe5 {[%clk 0:01:01.2]} 39... Qxe5+ {[%clk 0:00:07.3]} 40. Kg1 {[%clk 0:01:02]}
40... Qe1+ {[%clk 0:00:07.3]} 41. Kh2 {[%clk 0:01:02.8]} 41... Qe5+ {[%clk
0:00:07.9]} 42. g3 {[%clk 0:01:03.5]} 42... Qe6 {[%clk 0:00:06.7]} 43. Qa7
{[%clk 0:01:00.9]} 43... Qxg6 {[%clk 0:00:06.4]} 44. Qb7 {[%clk 0:00:59.2]}
44... Qh5+ {[%clk 0:00:05.9]} 45. Kg2 {[%clk 0:00:58.4]} 45... Qg4 {[%clk
0:00:05.9]} 46. Qxd5+ {[%clk 0:00:57.8]} 46... Kh8 {[%clk 0:00:04.6]} 47. Rc4
{[%clk 0:00:45.7]} 47... Qg6 {[%clk 0:00:03.5]} 48. Rf4 {[%clk 0:00:45.1]} 48...
Rf8 {[%clk 0:00:03.5]} 49. Rxa4 {[%clk 0:00:43.4]} 49... f4 {[%clk 0:00:03.1]}
50. Qf3 {[%clk 0:00:36.6]} 1-0

[Event "Late-Titled-Tuesday-Blitz-March-05-2024"]
[Site "Chess.com"]
[Date "2024.03.05"]
[Round "6"]
[White "shirovin"]
[Black "esrosenberg"]
[Result "0-1"]
[WhiteElo "2074"]
[BlackElo "2448"]
[TimeControl "180+1"]
[EndTime "15:05:22 PST"]
[Termination "esrosenberg won on time"]

1. e4 {[%clk 0:03:00.9]} 1... e6 {[%clk 0:02:59.1]} 2. d3 {[%clk 0:02:58.4]}
2... d5 {[%clk 0:02:58.9]} 3. Nd2 {[%clk 0:02:57.9]} 3... Nf6 {[%clk 0:02:58.1]}
4. Ngf3 {[%clk 0:02:58.3]} 4... Nc6 {[%clk 0:02:58.6]} 5. g3 {[%clk 0:02:57.8]}
5... dxe4 {[%clk 0:02:57.9]} 6. dxe4 {[%clk 0:02:57.3]} 6... Bc5 {[%clk
0:02:58.2]} 7. Bg2 {[%clk 0:02:57.2]} 7... e5 {[%clk 0:02:58.8]} 8. O-O {[%clk
0:02:56]} 8... O-O {[%clk 0:02:59.5]} 9. c3 {[%clk 0:02:50.5]} 9... a5 {[%clk
0:02:59.4]} 10. h3 {[%clk 0:02:44.6]} 10... a4 {[%clk 0:02:53.9]} 11. Nc4 {[%clk
0:02:32.1]} 11... Qe7 {[%clk 0:02:53.6]} 12. Re1 {[%clk 0:02:18.2]} 12... Rd8
{[%clk 0:02:42.6]} 13. Qc2 {[%clk 0:02:18]} 13... b6 {[%clk 0:02:37.9]} 14. Ne3
{[%clk 0:02:16.9]} 14... g6 {[%clk 0:02:14.4]} 15. h4 {[%clk 0:01:56.8]} 15...
a3 {[%clk 0:01:39.6]} 16. b4 {[%clk 0:01:50.5]} 16... Bd6 {[%clk 0:01:30.1]} 17.
Nd5 {[%clk 0:01:29.9]} 17... Nxd5 {[%clk 0:01:25.4]} 18. exd5 {[%clk 0:01:29.4]}
18... Nb8 {[%clk 0:01:25.9]} 19. Nd4 {[%clk 0:01:24.1]} 19... Qd7 {[%clk
0:01:06.1]} 20. Bg5 {[%clk 0:01:11.8]} 20... exd4 {[%clk 0:01:01.3]} 21. Bxd8
{[%clk 0:01:10.8]} 21... Qxd8 {[%clk 0:01:01]} 22. c4 {[%clk 0:00:52.3]} 22...
Bf5 {[%clk 0:00:51.6]} 23. Be4 {[%clk 0:00:47.2]} 23... Bxe4 {[%clk 0:00:50.8]}
24. Qxe4 {[%clk 0:00:42.6]} 24... Bxb4 {[%clk 0:00:48.3]} 25. Qe8+ {[%clk
0:00:27.9]} 25... Qxe8 {[%clk 0:00:46.9]} 26. Rxe8+ {[%clk 0:00:28.4]} 26... Kg7
{[%clk 0:00:45.2]} 27. Rc8 {[%clk 0:00:22.9]} 27... d3 {[%clk 0:00:19.9]} 28.
Rd1 {[%clk 0:00:16.8]} 28... d2 {[%clk 0:00:19.9]} 29. Kf1 {[%clk 0:00:16.6]}
29... Kf6 {[%clk 0:00:18.5]} 30. Ke2 {[%clk 0:00:13]} 30... Ke7 {[%clk
0:00:17.1]} 31. Rxc7+ {[%clk 0:00:09.3]} 31... Kd6 {[%clk 0:00:16.5]} 32. Rxf7
{[%clk 0:00:07.1]} 32... Nd7 {[%clk 0:00:17.2]} 33. Rxh7 {[%clk 0:00:05.3]}
33... Re8+ {[%clk 0:00:17.2]} 34. Kd3 {[%clk 0:00:04.8]} 34... Nc5+ {[%clk
0:00:16.2]} 35. Kc2 {[%clk 0:00:04.1]} 35... Re2 {[%clk 0:00:11.8]} 36. Rf7
{[%clk 0:00:01.1]} 36... Ne4 {[%clk 0:00:09]} 0-1

[Event "Late-Titled-Tuesday-Blitz-March-05-2024"]
[Site "Chess.com"]
[Date "2024.03.05"]
[Round "6"]
[White "WilsonPalencia21"]
[Black "szachmistrz2500"]
[Result "1-0"]
[WhiteElo "2576"]
[BlackElo "2437"]
[TimeControl "180+1"]
[EndTime "15:05:24 PST"]
[Termination "WilsonPalencia21 won by resignation"]

1. d4 {[%clk 0:03:00.3]} 1... c5 {[%clk 0:02:59.4]} 2. d5 {[%clk 0:03:00.4]}
2... e5 {[%clk 0:02:58.8]} 3. c4 {[%clk 0:03:00]} 3... d6 {[%clk 0:02:58.3]} 4.
Nc3 {[%clk 0:03:00.1]} 4... Be7 {[%clk 0:02:57.7]} 5. Nf3 {[%clk 0:02:58.9]}
5... f5 {[%clk 0:02:56.3]} 6. e4 {[%clk 0:02:55.3]} 6... Nf6 {[%clk 0:02:54.9]}
7. Bd3 {[%clk 0:02:54.2]} 7... f4 {[%clk 0:02:49.4]} 8. h3 {[%clk 0:02:53.5]}
8... O-O {[%clk 0:02:47.4]} 9. Qe2 {[%clk 0:02:52.9]} 9... Na6 {[%clk 0:02:45]}
10. a3 {[%clk 0:02:51.6]} 10... Nc7 {[%clk 0:02:44.8]} 11. Bd2 {[%clk
0:02:51.6]} 11... a6 {[%clk 0:02:44.9]} 12. b4 {[%clk 0:02:43.5]} 12... b6
{[%clk 0:02:30.4]} 13. bxc5 {[%clk 0:02:41.8]} 13... bxc5 {[%clk 0:02:29.5]} 14.
O-O {[%clk 0:02:41.2]} 14... Bd7 {[%clk 0:02:26.2]} 15. Rfb1 {[%clk 0:02:40.1]}
15... Rb8 {[%clk 0:02:25.8]} 16. Rxb8 {[%clk 0:02:39.5]} 16... Qxb8 {[%clk
0:02:25.4]} 17. Rb1 {[%clk 0:02:40.2]} 17... Qa7 {[%clk 0:02:24]} 18. Qd1 {[%clk
0:02:38.5]} 18... Rb8 {[%clk 0:02:23.3]} 19. Bc2 {[%clk 0:02:36]} 19... Rb7
{[%clk 0:02:05.3]} 20. Rxb7 {[%clk 0:02:30.8]} 20... Qxb7 {[%clk 0:02:05]} 21.
Qb1 {[%clk 0:02:31.5]} 21... Qxb1+ {[%clk 0:02:01.2]} 22. Nxb1 {[%clk
0:02:27.8]} 22... h6 {[%clk 0:02:01.3]} 23. Nc3 {[%clk 0:02:27.4]} 23... g5
{[%clk 0:02:00]} 24. Ne1 {[%clk 0:02:27.6]} 24... h5 {[%clk 0:01:58.7]} 25. Kf1
{[%clk 0:02:27]} 25... g4 {[%clk 0:01:58.7]} 26. hxg4 {[%clk 0:02:26.6]} 26...
hxg4 {[%clk 0:01:59.2]} 27. Ba4 {[%clk 0:02:25.4]} 27... Bc8 {[%clk 0:01:57.8]}
28. f3 {[%clk 0:02:19.6]} 28... Nce8 {[%clk 0:01:55.2]} 29. Bxe8 {[%clk
0:02:17.5]} 29... Nxe8 {[%clk 0:01:54.6]} 30. Na4 {[%clk 0:02:11.2]} 30... Bd8
{[%clk 0:01:51.7]} 31. Nd3 {[%clk 0:02:07.7]} 31... Nf6 {[%clk 0:01:51.1]} 32.
Ke2 {[%clk 0:02:06.9]} 32... Nh5 {[%clk 0:01:50.5]} 33. Be1 {[%clk 0:02:06.3]}
33... Kf7 {[%clk 0:01:48.6]} 34. Bf2 {[%clk 0:01:58.9]} 34... Kg6 {[%clk
0:01:36.8]} 35. Naxc5 {[%clk 0:01:53.8]} 35... dxc5 {[%clk 0:01:29]} 36. Nxe5+
{[%clk 0:01:53.8]} 36... Kg7 {[%clk 0:01:20]} 37. Bxc5 {[%clk 0:01:48.8]} 37...
g3 {[%clk 0:01:12.5]} 38. Nd3 {[%clk 0:01:43.7]} 38... Kf7 {[%clk 0:01:06.8]}
39. Bd6 {[%clk 0:01:39.2]} 39... Bg5 {[%clk 0:01:06]} 40. c5 {[%clk 0:01:32.1]}
40... a5 {[%clk 0:00:51.5]} 41. Ne5+ {[%clk 0:01:23.7]} 41... Ke8 {[%clk
0:00:50.2]} 42. Kf1 {[%clk 0:01:10.5]} 42... Ba6+ {[%clk 0:00:48.9]} 43. Kg1
{[%clk 0:01:10.7]} 43... Bf6 {[%clk 0:00:46]} 44. a4 {[%clk 0:01:03.8]} 44...
Ng7 {[%clk 0:00:43.4]} 45. Nc6 {[%clk 0:00:59.1]} 45... Bb7 {[%clk 0:00:38.6]}
46. e5 {[%clk 0:00:50.3]} 46... Bd8 {[%clk 0:00:32.4]} 47. Nxd8 {[%clk 0:00:49]}
47... Kxd8 {[%clk 0:00:32.5]} 48. c6 {[%clk 0:00:49.3]} 48... Ba6 {[%clk
0:00:30]} 49. e6 {[%clk 0:00:49.6]} 49... Bc4 {[%clk 0:00:22.2]} 50. Be5 {[%clk
0:00:44.5]} 50... Ne8 {[%clk 0:00:15.9]} 51. d6 {[%clk 0:00:34.5]} 51... Bxe6
{[%clk 0:00:14.1]} 52. Bxf4 {[%clk 0:00:34.2]} 52... Bb3 {[%clk 0:00:11]} 53.
Bg5+ {[%clk 0:00:34.1]} 53... Kc8 {[%clk 0:00:10.7]} 54. d7+ {[%clk 0:00:34.5]}
1-0

[Event "Late-Titled-Tuesday-Blitz-March-05-2024"]
[Site "Chess.com"]
[Date "2024.03.05"]
[Round "6"]
[White "norwaytoadog"]
[Black "yaguigor"]
[Result "1-0"]
[WhiteElo "2304"]
[BlackElo "2564"]
[TimeControl "180+1"]
[EndTime "15:05:27 PST"]
[Termination "norwaytoadog won by resignation"]

1. e4 {[%clk 0:03:00.2]} 1... d6 {[%clk 0:02:59.2]} 2. d4 {[%clk 0:03:00.1]}
2... Nf6 {[%clk 0:02:58.3]} 3. Nc3 {[%clk 0:03:00.6]} 3... c6 {[%clk 0:02:58]}
4. Be3 {[%clk 0:03:00.7]} 4... Ng4 {[%clk 0:02:51.8]} 5. Bf4 {[%clk 0:02:57.9]}
5... Qb6 {[%clk 0:02:47.5]} 6. h3 {[%clk 0:02:43.9]} 6... e5 {[%clk 0:02:29.8]}
7. hxg4 {[%clk 0:02:43.3]} 7... exf4 {[%clk 0:02:29.6]} 8. Qd2 {[%clk
0:02:38.6]} 8... Bxg4 {[%clk 0:02:20.3]} 9. Be2 {[%clk 0:02:34.2]} 9... Bxe2
{[%clk 0:02:17.3]} 10. Ngxe2 {[%clk 0:02:34.5]} 10... g5 {[%clk 0:02:12.8]} 11.
O-O-O {[%clk 0:02:17.3]} 11... Bg7 {[%clk 0:02:06.1]} 12. Rh5 {[%clk 0:02:15.3]}
12... h6 {[%clk 0:02:05.3]} 13. f3 {[%clk 0:01:59.3]} 13... Nd7 {[%clk
0:02:04.2]} 14. g3 {[%clk 0:01:59.2]} 14... fxg3 {[%clk 0:01:43.5]} 15. Nxg3
{[%clk 0:01:57.5]} 15... O-O-O {[%clk 0:01:44]} 16. Nf5 {[%clk 0:01:55.6]} 16...
Bf8 {[%clk 0:01:44.6]} 17. Rdh1 {[%clk 0:01:53.4]} 17... Nf6 {[%clk 0:01:37.6]}
18. Rxg5 {[%clk 0:01:49.6]} 18... hxg5 {[%clk 0:01:31.5]} 19. Rxh8 {[%clk
0:01:48.9]} 19... g4 {[%clk 0:01:29.2]} 20. fxg4 {[%clk 0:01:45.4]} 20... d5
{[%clk 0:01:24.4]} 21. e5 {[%clk 0:01:36.5]} 21... Ne4 {[%clk 0:01:17.5]} 22.
Nxe4 {[%clk 0:01:23.3]} 22... dxe4 {[%clk 0:01:18.4]} 23. Qg5 {[%clk 0:01:13.1]}
23... Qa5 {[%clk 0:01:04.1]} 24. Nd6+ {[%clk 0:00:44.4]} 24... Bxd6 {[%clk
0:00:41.8]} 25. Qxd8+ {[%clk 0:00:33.3]} 25... Qxd8 {[%clk 0:00:42.1]} 26. Rxd8+
{[%clk 0:00:33.7]} 26... Kxd8 {[%clk 0:00:42.8]} 27. exd6 {[%clk 0:00:34.2]}
27... Kd7 {[%clk 0:00:43.3]} 28. Kd2 {[%clk 0:00:34.8]} 28... Kxd6 {[%clk
0:00:43.5]} 29. c4 {[%clk 0:00:29.6]} 29... c5 {[%clk 0:00:38.9]} 30. Ke3 {[%clk
0:00:28.8]} 30... cxd4+ {[%clk 0:00:23.6]} 31. Kxd4 {[%clk 0:00:27.4]} 31... e3
{[%clk 0:00:23.1]} 32. Kxe3 {[%clk 0:00:27.4]} 32... Ke5 {[%clk 0:00:23.6]} 33.
b4 {[%clk 0:00:25.1]} 33... a6 {[%clk 0:00:18.8]} 34. a4 {[%clk 0:00:23.4]}
34... b6 {[%clk 0:00:18.4]} 35. Kd3 {[%clk 0:00:15.6]} 35... a5 {[%clk
0:00:13.5]} 36. c5 {[%clk 0:00:10.5]} 36... bxc5 {[%clk 0:00:13.1]} 37. bxa5
{[%clk 0:00:10.7]} 37... Kd5 {[%clk 0:00:12.7]} 38. a6 {[%clk 0:00:10.9]} 38...
Kc6 {[%clk 0:00:13]} 39. Kc4 {[%clk 0:00:11.1]} 39... Kb6 {[%clk 0:00:12.2]} 40.
a7 {[%clk 0:00:11]} 40... Kxa7 {[%clk 0:00:12.5]} 41. Kxc5 {[%clk 0:00:11.5]}
41... Ka6 {[%clk 0:00:13.2]} 42. Kd6 {[%clk 0:00:11.7]} 42... Ka5 {[%clk
0:00:13.9]} 43. Ke7 {[%clk 0:00:12]} 43... Kxa4 {[%clk 0:00:14.6]} 44. Kxf7
{[%clk 0:00:12.2]} 1-0